bitfinex/quotes_SOLUSD_20260305
["timestamp","ask_amount","ask_price","bid_price","bid_amount"]
[1772695068693,10.96984389,91.159,91.114,1.52116938]
[1772695069574,38.67456543,91.169,91.116,1.52116938]
[1772695069776,10.96864065,91.169,91.121,1.52116938]
[1772695071587,4.1600784,91.16,91.123,1.52116938]
[1772695072811,10.96984389,91.159,91.124,10.97405732]
[1772695073181,38.39445363,91.159,91.125,1.52116938]
[1772695079090,4.1600784,91.15,91.11,10.9757436]
[1772695079295,4.1600784,91.15,91.111,1.52116938]
[1772695080195,38.39445363,91.159,91.111,1.52116938]
[1772695082995,4.1600784,91.15,91.113,1.52116938]
[1772695083383,0.28432314,91.158,91.113,1.52116938]
[1772695085305,38.39529601,91.157,91.114,10.97526175]
[1772695085511,38.39529601,91.157,91.115,1.52116938]
[1772695085512,10.97008457,91.157,91.115,1.52116938]
[1772695086386,0.28432314,91.156,91.115,1.52116938]
[1772695086705,4.1600784,91.15,91.115,1.52116938]
[1772695088000,10.9710474,91.149,91.115,1.52116938]
[1772695091406,38.39866591,91.149,91.115,1.52116938]
[1772695091907,4.1600784,91.14,91.109,16.48248935]
[1772695092090,4.1600784,91.14,91.11,1.52116938]
[1772695094102,10.97225117,91.139,91.112,1.52116938]
[1772695095997,27.42761851,91.149,91.113,10.97538221]
[1772695096205,27.42761851,91.149,91.113,12.49655159]
[1772695096404,27.42761851,91.149,91.113,10.97538221]
[1772695096597,27.42761851,91.149,91.114,1.52116938]
[1772695097407,38.39866591,91.149,91.114,1.52116938]
[1772695099409,4.1600784,91.14,91.109,3.98549881]
[1772695100108,4.1600784,91.14,91.11,1.52116938]
[1772695101101,10.9710474,91.149,91.111,1.52116938]
[1772695101494,38.39463669,91.159,91.113,1.52116938]
[1772695103015,10.96984389,91.159,91.113,1.52116938]
[1772695103211,10.96743767,91.179,91.116,1.52116938]
[1772695103392,10.96743767,91.179,91.118,1.52116938]
[1772695103915,27.51854207,91.18,91.119,38.41130828]
[1772695104216,27.51854207,91.18,91.12,1.52116938]
[1772695106004,27.51854207,91.18,91.122,1.52116938]
[1772695107821,27.51854207,91.18,91.125,1.52116938]
[1772695108025,27.51854207,91.18,91.127,1.52116938]
[1772695109626,27.51854207,91.18,91.129,1.52116938]
[1772695111925,27.51854207,91.18,91.131,1.52116938]
[1772695114020,38.38645286,91.178,91.133,1.52116938]
[1772695115518,0.1,91.18,91.132,10.97309397]
[1772695115519,0.1,91.18,91.135,1.52116938]
[1772695116110,4.25756485,91.18,91.135,1.52116938]
[1772695116420,0.1,91.18,91.135,1.52116938]
[1772695117527,0.1,91.18,91.137,1.52116938]
[1772695118314,0.1,91.19,91.14,1.80549252]
[1772695119119,6.78612626,91.221,91.142,1.75789908]
[1772695119317,6.78612626,91.221,91.144,1.75789908]
[1772695119520,0.15028873,91.244,91.156,3.69383402]
[1772695119713,0.15028873,91.244,91.158,1.47357594]
[1772695119907,0.15028873,91.239,91.163,1.47357594]
[1772695120102,0.15028873,91.239,91.165,1.61573751]
[1772695120308,0.15028873,91.239,91.167,1.61573751]
[1772695121111,0.14971144,91.238,91.167,1.61573751]
[1772695121310,0.14971144,91.238,91.168,1.47357594]
[1772695121621,0.14914077,91.236,91.173,1.47357594]
[1772695121824,0.14914077,91.229,91.174,1.47357594]
[1772695122225,0.14857667,91.237,91.174,1.75789908]
[1772695124011,0.14801904,91.229,91.176,1.47357594]
[1772695124220,0.14801904,91.219,91.176,1.47357594]
[1772695126356,0.14696439,91.209,91.178,1.47357594]
[1772695128333,0.14696439,91.209,91.18,1.47357594]
[1772695129922,0.14696439,91.209,91.182,1.42116938]
[1772695130637,0.14696439,91.209,91.171,1.42116938]
[1772695131818,0.14333807,91.208,91.172,1.42116938]
[1772695134738,0.14333807,91.208,91.174,1.42116938]
[1772695136051,0.42766121,91.208,91.174,1.42116938]
[1772695136229,0.14139382,91.199,91.17,10.72514565]
[1772695136431,0.14139382,91.199,91.17,12.14631503]
[1772695136751,0.14139382,91.199,91.171,1.42116938]
[1772695139537,0.13953736,91.198,91.171,1.42116938]
[1772695142548,0.13820025,91.189,91.16,1.42116938]
[1772695144828,1.44015592,91.188,91.133,3.69383402]
[1772695145744,10.96438494,91.205,91.142,3.69383402]
[1772695145950,1.44015592,91.204,91.143,0.28432314]
[1772695146729,1.44015592,91.202,91.147,1.35659116]
[1772695148649,10.96346971,91.212,91.149,1.6409143]
[1772695148886,1.44015592,91.216,91.154,1.6409143]
[1772695149840,1.44015592,91.214,91.157,1.35659116]
[1772695151051,1.44015592,91.214,91.161,1.35659116]
[1772695151963,1.44015592,91.212,91.163,1.35659116]
[1772695152256,1.44015592,91.209,91.163,1.35659116]
[1772695153986,1.44015592,91.209,91.165,1.35659116]
[1772695153987,12.40400147,91.209,91.165,1.35659116]
[1772695156555,1.44015592,91.208,91.166,38.3915056]
[1772695156765,1.44015592,91.208,91.167,1.35659116]
[1772695158873,4.15756485,91.22,91.169,1.46796285]
[1772695158874,1.3506287,91.206,91.169,1.46796285]
[1772695160865,27.40952651,91.21,91.171,1.46796285]
[1772695160866,1.3506287,91.204,91.171,1.46796285]
[1772695162969,1.3506287,91.197,91.171,1.46796285]
[1772695163876,1.3506287,91.197,91.165,1.46796285]
[1772695165379,10.96539321,91.196,91.165,1.46796285]
[1772695165587,1.3506287,91.195,91.165,1.46796285]
[1772695166487,10.9656337,91.194,91.165,1.46796285]
[1772695166667,1.48193154,91.193,91.165,1.46796285]
[1772695167786,1.48193154,91.193,91.127,0.28432314]
[1772695167787,1.48193154,91.189,91.158,1.46162505]
[1772695168688,1.48193154,91.187,91.16,1.46162505]
[1772695169168,1.48193154,91.22,91.16,1.46162505]
[1772695169377,1.48193154,91.214,91.16,1.46162505]
[1772695169580,1.76625468,91.214,91.16,1.46162505]
[1772695172785,1.76625468,91.212,91.162,1.46162505]
[1772695174582,1.48193154,91.209,91.162,1.46162505]
[1772695175174,1.48193154,91.199,91.162,1.46162505]
[1772695175373,1.48193154,91.199,91.164,1.46162505]
[1772695177585,38.3780346,91.198,91.164,1.46162505]
[1772695177786,1.48193154,91.197,91.164,1.46162505]
[1772695181009,1.48193154,91.195,91.164,1.46162505]
[1772695182208,1.76625468,91.195,91.158,1.46162505]
[1772695182911,38.37971795,91.194,91.158,1.46162505]
[1772695183089,1.76625468,91.193,91.158,1.46162505]
[1772695183815,1.48193154,91.189,91.131,38.40625033]
[1772695185202,1.48193154,91.187,91.131,38.40625033]
[1772695185696,1.48193154,91.187,91.132,1.46162505]
[1772695187496,1.48193154,91.185,91.134,1.46162505]
[1772695190429,1.4925209,91.183,91.136,1.39261955]
[1772695193432,1.4925209,91.181,91.138,1.39261955]
[1772695194520,10.96731739,91.18,91.139,38.40287911]
[1772695194725,1.4925209,91.179,91.14,1.39261955]
[1772695196645,10.96755796,91.178,91.142,1.39261955]
[1772695197020,1.4925209,91.177,91.142,1.39261955]
[1772695197521,0.28432314,91.193,91.142,1.39261955]
[1772695197730,1.4925209,91.214,91.145,1.53478112]
[1772695197928,1.4925209,91.225,91.147,1.53478112]
[1772695198146,12.45365432,91.232,91.152,1.67694269]
[1772695198447,1.4925209,91.243,91.169,1.39261955]
[1772695198639,10.9590242,91.249,91.173,3.69383402]
[1772695198640,1.4925209,91.241,91.173,3.69383402]
[1772695198945,1.4925209,91.241,91.178,1.67694269]
[1772695200143,1.4925209,91.241,91.178,1.39261955]
[1772695200448,38.3595274,91.242,91.178,1.39261955]
[1772695200449,1.4925209,91.239,91.178,1.39261955]
[1772695201160,1.4925209,91.237,91.183,1.39261955]
[1772695202055,10.96034547,91.238,91.183,1.39261955]
[1772695202254,1.4925209,91.241,91.185,1.39261955]
[1772695202760,1.4925209,91.239,91.185,1.39261955]
[1772695203934,1.4925209,91.239,91.187,1.39261955]
[1772695204344,1.4925209,91.237,91.189,1.39261955]
[1772695206237,1.4925209,91.235,91.191,1.39261955]
[1772695207758,1.4925209,91.235,91.193,1.39261955]
[1772695208140,1.4925209,91.233,91.193,1.39261955]
[1772695210662,1.4925209,91.233,91.192,38.38055968]
[1772695210663,1.4925209,91.231,91.195,1.39261955]
[1772695211653,1.4925209,91.229,91.197,1.39261955]
[1772695213964,1.4925209,91.237,91.199,1.39261955]
[1772695214260,1.4925209,91.248,91.199,1.39261955]
[1772695215558,1.4925209,91.239,91.199,1.39261955]
[1772695217459,1.4925209,91.237,91.201,1.39261955]
[1772695218862,4.15654291,91.23,91.19,1.4602961]
[1772695219050,1.41829296,91.229,91.19,1.4602961]
[1772695219851,1.41829296,91.227,91.192,1.4602961]
[1772695222570,1.41829296,91.225,91.192,1.4602961]
[1772695222753,1.41829296,91.225,91.194,1.4602961]
[1772695223069,1.7026161,91.225,91.184,1.4602961]
[1772695223260,1.7026161,91.225,91.185,1.4602961]
[1772695223760,1.41829296,91.225,91.185,1.4602961]
[1772695224869,1.41829296,91.223,91.187,1.4602961]
[1772695225074,27.40166465,91.236,91.187,1.4602961]
[1772695225075,1.41829296,91.23,91.187,1.4602961]
[1772695226449,10.96142673,91.229,91.188,10.96635522]
[1772695226648,1.41829296,91.228,91.189,1.4602961]
[1772695229674,0.14216157,91.235,91.191,1.44373155]
[1772695229675,1.43050232,91.226,91.191,1.44373155]
[1772695231485,1.43050232,91.219,91.184,10.96683628]
[1772695231677,1.43050232,91.217,91.184,10.96683628]
[1772695232078,1.43050232,91.217,91.185,1.44373155]
[1772695233865,1.43050232,91.215,91.185,1.44373155]
[1772695234071,1.43050232,91.215,91.183,3.15766169]
[1772695234572,1.71482546,91.215,91.183,1.96074631]
[1772695234759,4.15260478,91.21,91.183,1.96074631]
[1772695234961,1.43050232,91.209,91.176,10.9677885]
[1772695235878,1.43050232,91.207,91.176,1.44373155]
[1772695238386,1.43050232,91.205,91.177,10.96767825]
[1772695241062,10.96443138,91.204,91.177,10.96767825]
[1772695241275,1.43050232,91.203,91.177,10.96767825]
[1772695241982,1.43050232,91.203,91.177,12.4114098]
[1772695242182,1.43050232,91.203,91.173,10.96812622]
[1772695242559,1.43050232,91.199,91.167,1.44373155]
[1772695243488,1.43050232,91.198,91.169,1.44373155]
[1772695245279,1.43050232,91.196,91.164,1.44373155]
[1772695247097,1.43050232,91.196,91.148,1.44373155]
[1772695248089,1.43050232,91.194,91.15,1.44373155]
[1772695250177,1.37156666,91.192,91.152,1.49279737]
[1772695251683,1.6558898,91.192,91.152,1.49279737]
[1772695251884,1.6558898,91.192,91.117,0.28432314]
[1772695251885,1.37156666,91.179,91.145,1.49279737]
[1772695252079,1.37156666,91.177,91.146,10.9714085]
[1772695252280,1.37156666,91.177,91.147,1.49279737]
[1772695253899,1.37156666,91.177,91.149,1.49279737]
[1772695255486,1.37156666,91.175,91.149,1.49279737]
[1772695256307,1.37156666,91.175,91.151,1.49279737]
[1772695257197,10.96729993,91.181,91.151,1.49279737]
[1772695257383,1.37156666,91.18,91.151,1.49279737]
[1772695259497,1.37156666,91.18,91.152,10.97068632]
[1772695259680,1.37156666,91.18,91.153,1.49279737]
[1772695259887,1.37156666,91.178,91.153,1.49279737]
[1772695262387,1.37156666,91.178,91.154,10.97044561]
[1772695262904,1.37156666,91.178,91.121,2.13825272]
[1772695262905,1.37156666,91.159,91.122,10.97429819]
[1772695264099,1.37156666,91.159,91.123,1.49279737]
[1772695264487,1.37156666,91.149,91.124,10.97405732]
[1772695267498,1.37156666,91.147,91.124,10.97405732]
[1772695268202,1.37156666,91.147,91.113,12.46817958]
[1772695268512,1.37156666,91.147,91.114,1.49279737]
[1772695270091,1.37156666,91.147,91.098,54.88547724]
[1772695270092,1.37156666,91.147,91.116,1.49279737]
[1772695271505,1.37156666,91.147,91.117,10.9749004]
[1772695271682,1.37156666,91.147,91.118,1.49279737]
[1772695271884,10.9714085,91.146,91.118,1.49279737]
[1772695272090,1.37156666,91.145,91.118,1.49279737]
[1772695273928,1.37156666,91.145,91.12,1.49279737]
[1772695277724,1.37156666,91.145,91.122,1.49279737]
[1772695280111,1.45064508,91.144,91.124,1.44183303]
[1772695281336,1.45064508,91.144,91.115,1.44183303]
[1772695282221,1.45064508,91.139,91.105,1.44183303]
[1772695283821,1.45064508,91.137,91.106,1.44183303]
[1772695286833,1.45064508,91.137,91.094,27.44389871]
[1772695286834,1.38257641,91.135,91.1,1.51656524]
[1772695288034,1.38257641,91.133,91.101,10.97682791]
[1772695288430,1.38257641,91.133,91.102,1.51656524]
[1772695288730,0.28432314,91.151,91.102,1.51656524]
[1772695288731,1.38257641,91.138,91.102,1.51656524]
[1772695288931,1.38257641,91.147,91.102,1.51656524]
[1772695289325,1.66689955,91.147,91.102,1.51656524]
[1772695289923,1.38257641,91.145,91.104,1.51656524]
[1772695290522,27.42168133,91.169,91.104,1.51656524]
[1772695290723,1.66689955,91.167,91.104,1.51656524]
[1772695291951,1.38257641,91.159,91.106,1.51656524]
[1772695292847,1.38257641,91.149,91.106,1.51656524]
[1772695293227,1.38257641,91.147,91.108,1.51656524]
[1772695296052,1.38257641,91.145,91.109,12.49242931]
[1772695296250,1.38257641,91.145,91.11,1.51656524]
[1772695297434,1.38257641,91.145,91.095,28.99846702]
[1772695297435,1.38257641,91.129,91.099,1.51656524]
[1772695297655,1.38257641,91.129,91.095,1.55463342]
[1772695298041,1.38257641,91.127,91.096,10.9774304]
[1772695298749,1.38257641,91.127,91.095,3.07119866]
[1772695299459,1.38257641,91.127,91.096,1.51656524]
[1772695300057,1.38257641,91.125,91.096,1.51656524]
[1772695300265,1.66689955,91.125,91.096,1.51656524]
[1772695302265,0.28432314,91.123,91.096,1.51656524]
[1772695302440,1.38257641,91.122,91.096,1.51656524]
[1772695304656,1.38257641,91.12,91.097,1.51656524]
[1772695306066,1.38257641,91.13,91.097,1.51656524]
[1772695306967,1.38257641,91.128,91.099,1.51656524]
[1772695311768,1.37121424,91.124,91.096,1.40882086]
[1772695311952,1.37121424,91.122,91.096,1.40882086]
[1772695312155,1.51337581,91.122,91.096,1.40882086]
[1772695313260,1.37121424,91.12,91.096,1.40882086]
[1772695313958,38.39950847,91.147,91.098,1.40882086]
[1772695314161,0.28432314,91.139,91.098,1.40882086]
[1772695314664,4.16260271,91.13,91.098,1.40882086]
[1772695315363,38.40709323,91.129,91.098,1.40882086]
[1772695315556,0.28432314,91.128,91.095,1.55463342]
[1772695315960,1.37121424,91.127,91.095,1.55463342]
[1772695318177,1.37121424,91.124,91.096,1.40882086]
[1772695321356,1.37121424,91.119,91.095,1.55463342]
[1772695322679,1.37121424,91.119,91.096,1.40882086]
[1772695322984,1.37121424,91.121,91.097,1.40882086]
[1772695324071,1.37121424,91.119,91.097,1.40882086]
[1772695325683,1.37121424,91.117,91.097,1.40882086]
[1772695326466,1.37121424,91.117,91.095,1.55463342]
[1772695326773,1.37121424,91.117,91.096,1.40882086]
[1772695328191,10.97502085,91.116,91.096,1.40882086]
[1772695331387,1.37121424,91.116,91.096,1.40882086]
[1772695333689,4.16260271,91.13,91.096,1.40882086]
[1772695333690,1.37121424,91.138,91.097,1.40882086]
[1772695333890,1.65553738,91.138,91.097,1.40882086]
[1772695334491,10.97128813,91.147,91.097,1.40882086]
[1772695334995,1.37121424,91.152,91.097,1.40882086]
[1772695335189,1.37121424,91.189,91.1,1.40882086]
[1772695335369,12.33780592,91.187,91.102,1.40882086]
[1772695335688,1.37121424,91.159,91.108,1.40882086]
[1772695336883,1.37121424,91.157,91.11,1.40882086]
[1772695338690,1.39761893,91.149,91.11,1.40882086]
[1772695339695,1.39761893,91.138,91.11,1.40882086]
[1772695339889,1.39761893,91.138,91.111,10.97562314]
[1772695340110,1.39761893,91.138,91.112,1.50847166]
[1772695341201,1.39761893,91.138,91.105,12.48469854]
[1772695341379,1.39761893,91.138,91.106,1.50847166]
[1772695341780,1.39761893,91.138,91.103,1.29631066]
[1772695341781,0.14216157,91.179,91.108,1.50847166]
[1772695342293,0.28432314,91.179,91.108,1.50847166]
[1772695342797,0.28432314,91.179,91.107,38.41636755]
[1772695342798,0.28432314,91.177,91.11,1.50847166]
[1772695343098,0.14216157,91.177,91.11,1.50847166]
[1772695343684,0.2053487,91.176,91.11,1.50847166]
[1772695344901,0.20573834,91.165,91.112,1.50847166]
[1772695349809,0.20728968,91.162,91.114,1.49599942]
[1772695351299,0.20748044,91.16,91.116,1.49599942]
[1772695354286,10.96984389,91.159,91.118,1.49599942]
[1772695357201,0.20857983,91.187,91.12,1.49599942]
[1772695357893,0.20875577,91.184,91.12,1.49599942]
[1772695358098,0.49307891,91.184,91.12,1.49599942]
[1772695358306,0.28432314,91.184,91.12,1.49599942]
[1772695358507,0.20892968,91.183,91.12,1.49599942]
[1772695359194,0.20892968,91.217,91.125,1.78032256]
[1772695359399,0.2091016,91.208,91.127,1.49599942]
[1772695359703,0.2091016,91.208,91.133,0.14216157]
[1772695359902,0.2091016,91.208,91.137,3.69383402]
[1772695360094,0.2091016,91.208,91.139,1.49599942]
[1772695360297,0.2091016,91.208,91.141,1.78032256]
[1772695360504,0.2091016,91.208,91.145,1.63816099]
[1772695360705,0.2091016,91.208,91.147,1.49599942]
[1772695361208,0.20927155,91.207,91.151,3.69383402]
[1772695361403,0.20927155,91.207,91.152,1.49599942]
[1772695364616,0.20927155,91.207,91.156,3.69383402]
[1772695364819,0.20927155,91.207,91.157,1.49599942]
[1772695366995,0.210251,91.213,91.159,1.49599942]
[1772695367200,0.210251,91.238,91.163,3.69383402]
[1772695367497,0.210251,91.238,91.165,1.78032256]
[1772695367498,0.21040774,91.237,91.165,1.78032256]
[1772695367698,0.21040774,91.237,91.169,1.49599942]
[1772695367914,0.21040774,91.237,91.171,1.49599942]
[1772695368117,0.21040774,91.237,91.172,1.49599942]
[1772695368304,0.21040774,91.234,91.177,1.49599942]
[1772695368642,0.21040774,91.234,91.179,1.49599942]
[1772695368849,0.21040774,91.234,91.18,1.45879742]
[1772695369133,0.28432314,91.235,91.18,1.45879742]
[1772695369134,0.21071585,91.228,91.181,1.45879742]
[1772695370632,0.21101691,91.226,91.183,1.45879742]
[1772695374536,0.21101691,91.226,91.185,1.45879742]
[1772695374734,0.21159858,91.235,91.185,1.45879742]
[1772695374961,0.21159858,91.235,91.184,38.38392699]
[1772695374962,0.21159858,91.249,91.188,1.45879742]
[1772695375265,0.21159858,91.248,91.188,1.45879742]
[1772695376132,0.21173984,91.247,91.188,1.45879742]
[1772695376751,0.21187948,91.244,91.19,1.45879742]
[1772695378349,4.15881729,91.24,91.19,1.45879742]
[1772695378534,0.21215397,91.239,91.19,1.45879742]
[1772695379451,10.96034547,91.238,91.191,38.38098057]
[1772695379638,10.96034547,91.238,91.192,1.45879742]
[1772695379639,0.21228886,91.237,91.192,1.45879742]
[1772695380633,0.21242219,91.236,91.185,1.45879742]
[1772695380856,0.21242219,91.219,91.185,10.96661481]
[1772695381458,0.212554,91.217,91.175,1.45879742]
[1772695381651,0.212554,91.209,91.164,1.45879742]
[1772695382433,0.212554,91.209,91.149,2.17437341]
[1772695382434,0.21268429,91.198,91.158,1.45879742]
[1772695382639,0.21268429,91.189,91.158,1.45879742]
[1772695383138,0.21268429,91.179,91.149,2.17437341]
[1772695383640,0.21281308,91.169,91.133,1.45879742]
[1772695384845,10.96876096,91.168,91.138,1.52794653]
[1772695385939,0.28432314,91.175,91.139,12.5001977]
[1772695386163,0.28432314,91.175,91.14,1.52794653]
[1772695386365,10.96779854,91.176,91.14,1.52794653]
[1772695388667,11.2505581,91.189,91.142,1.52794653]
[1772695388863,38.6661455,91.189,91.142,1.52794653]
[1772695391669,38.6661455,91.189,91.144,1.52794653]
[1772695393459,4.15881729,91.18,91.139,1.52794653]
[1772695393672,4.15881729,91.17,91.139,1.52794653]
[1772695393875,4.15881729,91.17,91.128,10.97357562]
[1772695394181,4.15881729,91.17,91.129,1.52794653]
[1772695394380,4.15881729,91.18,91.129,1.52794653]
[1772695394683,0.28432314,91.179,91.129,1.52794653]
[1772695396787,4.15881729,91.17,91.131,1.52794653]
[1772695396966,0.28432314,91.177,91.131,1.52794653]
[1772695399482,58.9836959,91.2,91.113,1.60066448]
[1772695399483,4.15881729,91.16,91.114,1.52794653]
[1772695400584,38.39445363,91.159,91.118,1.52794653]
[1772695401882,54.82834686,91.194,91.118,1.52794653]
[1772695402190,38.38013882,91.193,91.118,1.52794653]
[1772695402486,0.14216157,91.192,91.118,1.52794653]
[1772695402676,0.28432314,91.192,91.12,1.52794653]
[1772695403686,0.14216157,91.192,91.125,1.52794653]
[1772695403888,10.96515274,91.198,91.13,0.28432314]
[1772695404077,10.96515274,91.198,91.137,1.52794653]
[1772695404872,0.28432314,91.204,91.139,1.52794653]
[1772695407872,0.28432314,91.199,91.141,1.52794653]
[1772695410500,0.28432314,91.197,91.143,1.52794653]
[1772695414884,0.28432314,91.195,91.145,1.52794653]
[1772695419104,0.28432314,91.193,91.147,1.52794653]
[1772695423413,0.28432314,91.193,91.148,38.39908719]
[1772695423414,10.96587419,91.192,91.148,38.39908719]
[1772695423603,10.96587419,91.192,91.149,1.52794653]
[1772695426731,10.96443138,91.204,91.151,1.52794653]
[1772695426934,10.96431116,91.205,91.151,1.52794653]
[1772695428035,10.96431116,91.205,91.153,1.52794653]
[1772695428344,27.40699286,91.218,91.156,1.52794653]
[1772695428345,10.96369935,91.211,91.156,1.52794653]
[1772695428913,1.49866977,91.229,91.156,1.46632938]
[1772695429119,1.49866977,91.248,91.161,1.75065252]
[1772695429339,1.49866977,91.248,91.166,1.75065252]
[1772695429518,1.49866977,91.248,91.17,1.75065252]
[1772695429716,1.49866977,91.248,91.171,1.46632938]
[1772695429917,1.49866977,91.248,91.173,1.75065252]
[1772695430135,1.49866977,91.246,91.179,0.14216157]
[1772695430340,1.49866977,91.246,91.18,1.46632938]
[1772695430633,1.49866977,91.246,91.184,1.60849095]
[1772695430815,1.49866977,91.246,91.186,1.60849095]
[1772695431636,1.49866977,91.244,91.188,1.46632938]
[1772695431936,1.49866977,91.244,91.187,38.38266419]
[1772695431937,1.49866977,91.244,91.19,1.46632938]
[1772695432127,1.49866977,91.244,91.191,1.46632938]
[1772695432330,1.49866977,91.244,91.192,1.46632938]
[1772695432531,1.49866977,91.244,91.193,1.46632938]
[1772695432732,1.49866977,91.244,91.193,8.66583628]
[1772695432920,1.49866977,91.244,91.194,1.46632938]
[1772695433120,1.49866977,91.244,91.195,1.46632938]
[1772695433321,1.49866977,91.244,91.196,1.46632938]
[1772695433539,1.49866977,91.244,91.197,1.46632938]
[1772695433727,1.49866977,91.242,91.199,1.46632938]
[1772695434037,1.49866977,91.242,91.201,1.46632938]
[1772695434238,1.49866977,91.242,91.202,1.46632938]
[1772695435244,1.64083134,91.242,91.201,8.66507612]
[1772695435541,1.64083134,91.242,91.202,1.46632938]
[1772695435835,0.1,91.25,91.206,3.69383402]
[1772695436038,1.49866977,91.264,91.207,1.46632938]
[1772695436226,1.49866977,91.259,91.207,1.46632938]
[1772695436537,1.64083134,91.259,91.207,1.46632938]
[1772695436839,1.49866977,91.249,91.207,1.46632938]
[1772695437143,1.78299291,91.249,91.203,10.9645516]
[1772695438447,1.78299291,91.247,91.204,1.46632938]
[1772695441429,1.49866977,91.239,91.201,8.66507612]
[1772695441624,1.78299291,91.239,91.201,8.66507612]
[1772695442427,1.78299291,91.239,91.202,1.46632938]
[1772695442629,10.95938452,91.246,91.202,1.46632938]
[1772695443326,1.49866977,91.245,91.204,1.46632938]
[1772695446758,1.49866977,91.245,91.201,8.66507612]
[1772695446759,1.49866977,91.254,91.206,1.46632938]
[1772695447556,10.95731305,91.264,91.209,1.46632938]
[1772695447745,1.49866977,91.278,91.209,1.75065252]
[1772695447954,10.95662273,91.269,91.211,1.75065252]
[1772695449056,1.49866977,91.269,91.216,1.75065252]
[1772695451756,12.45541254,91.268,91.218,1.46632938]
[1772695451956,1.49866977,91.267,91.218,1.46632938]
[1772695454751,10.95698288,91.266,91.22,1.46632938]
[1772695455460,1.49866977,91.267,91.22,1.46632938]
[1772695455758,1.49866977,91.265,91.22,1.46632938]
[1772695456856,4.25643525,91.28,91.209,3.69383402]
[1772695456857,1.78299291,91.263,91.222,1.46632938]
[1772695459736,1.40578367,91.261,91.224,1.48237022]
[1772695463661,1.40578367,91.259,91.226,1.48237022]
[1772695466262,1.40578367,91.257,91.226,1.48237022]
[1772695466456,1.40578367,91.257,91.228,1.48237022]
[1772695469172,1.46974481,91.255,91.23,1.41649592]
[1772695470951,1.46974481,91.253,91.23,1.41649592]
[1772695471874,1.46974481,91.253,91.224,1.41649592]
[1772695473369,12.42840872,91.252,91.226,1.41649592]
[1772695473664,1.46974481,91.251,91.226,1.41649592]
[1772695474381,10.95746312,91.262,91.226,1.41649592]
[1772695474548,1.46974481,91.261,91.226,1.41649592]
[1772695475372,10.95770326,91.26,91.227,10.96166705]
[1772695475554,10.95770326,91.26,91.228,1.41649592]
[1772695476181,10.95724012,91.264,91.228,1.41649592]
[1772695476956,10.95671594,91.269,91.228,1.41649592]
[1772695477183,0.1,91.27,91.228,1.41649592]
[1772695477489,27.38658933,91.286,91.219,3.69383402]
[1772695477490,10.95410231,91.29,91.229,38.36499357]
[1772695477777,1.54241889,91.309,91.233,0.28432314]
[1772695477949,15.10186031,91.31,91.232,3.69383402]
[1772695477950,1.54241889,91.289,91.232,3.69383402]
[1772695479453,1.54241889,91.287,91.236,3.69383402]
[1772695481682,1.54241889,91.279,91.237,10.9604656]
[1772695484279,1.54241889,91.277,91.214,0.28432314]
[1772695486158,1.54241889,91.275,91.218,3.69383402]
[1772695486968,1.54241889,91.275,91.219,0.28432314]
[1772695488188,1.54241889,91.275,91.224,0.28432314]
[1772695488491,1.54241889,91.285,91.224,0.28432314]
[1772695488657,1.54241889,91.3,91.224,0.28432314]
[1772695489679,1.54241889,91.298,91.229,0.28432314]
[1772695490181,1.54241889,91.298,91.231,0.28432314]
[1772695490386,1.54241889,91.298,91.231,2.4575205]
[1772695490678,1.54241889,91.298,91.233,0.28432314]
[1772695490882,1.54241889,91.298,91.233,2.45747286]
[1772695491185,1.54241889,91.298,91.235,0.28432314]
[1772695491477,1.54241889,91.298,91.235,2.45742522]
[1772695491659,1.54241889,91.296,91.237,38.3616296]
[1772695491861,1.54241889,91.296,91.238,2.17303062]
[1772695493680,1.54241889,91.294,91.239,38.36078869]
[1772695493885,1.54241889,91.294,91.24,2.18478374]
[1772695496780,1.54241889,91.292,91.241,38.35994782]
[1772695496985,1.54241889,91.292,91.242,2.18473585]
[1772695497763,1.54241889,91.292,91.244,3.69383402]
[1772695498014,1.54241889,91.292,91.245,1.81787948]
[1772695499381,1.54241889,91.29,91.246,38.35784582]
[1772695499568,1.54241889,91.29,91.247,1.81783963]
[1772695501881,1.54241889,91.288,91.248,38.35700508]
[1772695504680,4.15015733,91.3,91.248,10.95914431]
[1772695504681,1.54241889,91.286,91.248,10.95914431]
[1772695506695,1.54241889,91.284,91.248,10.95914431]
[1772695508669,10.95494232,91.283,91.248,10.95914431]
[1772695508875,10.95494232,91.283,91.247,1.81783963]
[1772695508876,1.54241889,91.282,91.247,1.81783963]
[1772695509291,1.54241889,91.282,91.229,10.96142673]
[1772695509592,1.42849328,91.279,91.229,10.96142673]
[1772695509891,1.71281642,91.279,91.229,10.96142673]
[1772695510076,1.42849328,91.279,91.23,1.52469473]
[1772695511197,1.42849328,91.279,91.229,10.96142673]
[1772695511198,1.40834523,91.277,91.231,12.43654183]
[1772695511386,1.69266837,91.277,91.231,12.43654183]
[1772695512190,1.69266837,91.277,91.232,1.4753554]
[1772695513799,1.69266837,91.275,91.233,10.96094614]
[1772695515097,1.40834523,91.272,91.233,10.96094614]
[1772695515309,1.40834523,91.272,91.234,1.4753554]
[1772695515700,1.40834523,91.272,91.233,10.96094614]
[1772695516191,1.40834523,91.27,91.23,1.4753554]
[1772695516502,1.40834523,91.27,91.157,18.0176148]